fUSD/lending_fUSD_20251118
["ID","MTS","AMOUNT","RATE_DAILY","PERIOD"]
[394302434,1763434242601,-150.0,0.00024795,2]
[394302435,1763434242610,-500.0,0.00024795,2]
[394302436,1763434242620,-152.30588994,0.00024795,2]
[394302437,1763434242629,-150.0,0.00024795,2]
[394302438,1763434242639,-500.0,0.00024795,2]
[394302439,1763434242648,-500.0,0.00024795,2]
[394302440,1763434242657,-500.0,0.00024799,2]
[394302441,1763434242668,-500.0,0.00024799,2]
[394302442,1763434242677,-855.66021218,0.000248,3]
[394302443,1763434242686,-302422.228015,0.000248,3]
[394302444,1763434242696,-500.0,0.00024873,2]
[394302445,1763434242705,-500.0,0.00024873,2]
[394302446,1763434242716,-503.73371905,0.00024873,2]
[394302447,1763434242727,-500.0,0.00024873,2]
[394302448,1763434242736,-500.0,0.00024873,2]
[394302449,1763434242746,-20161.4818676,0.00024889,3]
[394302450,1763434242757,-500.0,0.00024889,2]
[394302451,1763434242767,-500.0,0.00024889,2]
[394302452,1763434242776,-100807.409338,0.0002489,3]
[394302453,1763434242786,-500.0,0.00024899,2]
[394302454,1763434242795,-383.92120386,0.00024899,2]
[394302455,1763434242805,-186.44987428,0.00024899,2]
[394302456,1763434242815,-500.0,0.00024899,2]
[394302457,1763434242825,-507.42003627,0.00024899,2]
[394302458,1763434242834,-256.88060397,0.00024899,2]
[394302459,1763434242844,-500.0,0.000249,9]
[394302460,1763434242853,-295263.220643,0.000249,3]
[394302461,1763434242863,-154.0078348,0.00024932,2]
[394302462,1763434242872,-150.0,0.00024932,2]
[394302463,1763434242881,-511.55408996,0.00024932,2]
[394302464,1763434242890,-576.87546424,0.00024932,2]
[394302465,1763434242900,-150.0,0.00024932,2]
[394302466,1763434242909,-150.0,0.00024932,2]
[394302467,1763434242918,-500.0,0.00024932,2]
[394302468,1763434242929,-500.0,0.00024932,2]
[394302469,1763434242938,-150.0,0.00024932,2]
[394302471,1763434242948,-500.0,0.00024932,2]
[394302473,1763434242957,-254.08193644,0.00024932,2]
[394302474,1763434242966,-1092.0,0.00024932,2]
[394302475,1763434242977,-223.46824712,0.00024932,2]
[394302476,1763434242986,-150.0,0.00024932,2]
[394302477,1763434242995,-500.0,0.00024932,2]
[394302478,1763434243004,-150.0,0.00024932,2]
[394302479,1763434243013,-500.0,0.00024932,2]
[394302480,1763434243023,-500.0,0.00024932,2]
[394302481,1763434243032,-20161.4818676,0.00025059,3]
[394302482,1763434243041,-150.0,0.00025069,2]
[394302484,1763434243050,-199.94211512,0.00025069,2]
[394302485,1763434243060,-243.41507889,0.00025069,2]
[394302486,1763434243069,-500.0,0.00025069,2]
[394302488,1763434243079,-500.0,0.00025069,2]
[394302490,1763434243088,-200.0,0.00025069,2]
[394302492,1763434243098,-500.0,0.00025069,2]
[394302494,1763434243107,-1092.0,0.00025069,2]
[394302496,1763434243116,-225.83205311,0.00025069,2]
[394302498,1763434243125,-208.29198445,0.00025069,2]
[394302500,1763434243134,-150.0,0.00025069,2]
[394302501,1763434243143,-500.0,0.00025069,2]
[394302502,1763434243152,-500.0,0.00025069,2]
[394302503,1763434243162,-166.66,0.00025159,30]
[394302504,1763434243171,-150.0,0.00025206,2]
[394302505,1763434243180,-500.0,0.00025206,2]
[394302506,1763434243189,-500.0,0.00025206,2]
[394302507,1763434243198,-500.0,0.00025206,2]
[394302508,1763434243207,-1092.0,0.00025206,2]
[394302509,1763434243215,-150.0,0.00025206,2]
[394302510,1763434243226,-500.0,0.00025206,2]
[394302511,1763434243235,-500.0,0.00025206,2]
[394302512,1763434243244,-339.27294743,0.00025321,2]
[394302513,1763434243253,-150.0,0.00025343,2]
[394302514,1763434243262,-500.0,0.00025343,2]
[394302515,1763434243271,-500.0,0.00025343,2]
[394302516,1763434243280,-500.0,0.00025343,2]
[394302517,1763434243289,-1092.0,0.00025343,2]
[394302518,1763434243298,-150.0,0.00025343,2]
[394302519,1763434243307,-315.7049293,0.00025343,2]
[394302520,1763434243316,-500.0,0.00025343,2]
[394302521,1763434243326,-506.2849237,0.00025421,2]
[394302522,1763434243335,-185.56513199,0.00025421,2]
[394302523,1763434243343,-205.07964062,0.0002548,2]
[394302524,1763434243352,-500.0,0.0002548,2]
[394302525,1763434243361,-364.89356256,0.0002548,2]
[394302526,1763434243370,-500.0,0.0002548,2]
[394302527,1763434243378,-1092.0,0.0002548,2]
[394302528,1763434243387,-163.61190569,0.0002548,2]
[394302529,1763434243398,-500.0,0.0002548,2]
[394302530,1763434243409,-4329.0,0.0002548,2]
[394302531,1763434243418,-18453.9512902,0.00025565,3]
[394302532,1763434243427,-1268.16341957,0.00025587,2]
[394302533,1763434243437,-255.72928133,0.00025587,2]
[394302534,1763434243446,-500.0,0.00025617,2]
[394302535,1763434243455,-500.0,0.00025617,2]
[394302536,1763434243464,-1092.0,0.00025617,2]
[394302537,1763434243474,-500.0,0.00025617,2]
[394302538,1763434243485,-166.66,0.00025678,30]
[394302539,1763434243495,-6259.0,0.00025726,2]
[394302540,1763434243504,-500.0,0.00025754,2]
[394302541,1763434243513,-500.0,0.00025754,2]
[394302542,1763434243522,-1092.0,0.00025754,2]
[394302543,1763434243531,-500.0,0.00025754,2]
[394302544,1763434243540,-2455.68,0.00025791,2]
[394302545,1763434243549,-18453.9512902,0.00025881,3]
[394302546,1763434243558,-500.0,0.00025891,2]
[394302547,1763434243568,-642.36910911,0.00025891,2]
[394302548,1763434243577,-1092.0,0.00025891,2]
[394302549,1763434243586,-500.0,0.00025891,2]
[394302550,1763434243594,-500.0,0.00026028,2]
[394302551,1763434243604,-1092.0,0.00026028,2]
[394302552,1763434243613,-500.0,0.00026028,2]
[394302553,1763434243622,-672.21,0.0002608,2]
[394302554,1763434243631,-504.13120605,0.00026097,2]
[394302555,1763434243641,-500.0,0.00026097,2]
[394302556,1763434243649,-500.0,0.00026097,2]
[394302557,1763434243659,-311.74376832,0.00026097,2]
[394302558,1763434243714,-501.95613346,0.00026097,2]
[394302559,1763434243723,-503.31738035,0.00026097,2]
[394302560,1763434243733,-500.0,0.00026165,2]
[394302561,1763434243742,-1092.0,0.00026165,2]
[394302562,1763434243751,-500.0,0.00026165,2]
[394302563,1763434243762,-166.66,0.00026197,30]
[394302564,1763434243770,-284.94007863,0.00026302,2]
[394302565,1763434243780,-1092.0,0.00026302,2]
[394302566,1763434243789,-500.0,0.00026302,2]
[394302567,1763434243798,-506.14199973,0.00026309,2]
[394302568,1763434243807,-1092.0,0.00026439,2]
[394302569,1763434243817,-500.0,0.00026439,2]
[394302570,1763434243826,-161.68469529,0.0002646,2]
[394302571,1763434243835,-1092.0,0.00026576,2]
[394302572,1763434243844,-500.0,0.00026576,2]
[394302573,1763434243853,-500.83453112,0.00026595,2]
[394302574,1763434243862,-500.0,0.00026595,2]
[394302575,1763434243872,-526.70974316,0.00026645,2]
[394302577,1763434243881,-205.54628566,0.00026645,2]
[394302579,1763434243890,-1092.0,0.00026713,2]
[394302581,1763434243899,-500.0,0.00026713,2]
[394302582,1763434243908,-166.66,0.00026716,30]
[394302583,1763434243917,-1092.0,0.0002685,2]
[394302584,1763434243926,-500.0,0.0002685,2]
[394302585,1763434243935,-1092.0,0.00026987,2]
[394302586,1763434243944,-525.88620089,0.00026987,2]
[394302587,1763434243953,-1092.0,0.00027124,2]
[394302588,1763434243961,-502.16997006,0.00027143,2]
[394302589,1763434243970,-166.66,0.00027234,30]
[394302590,1763434243980,-1092.0,0.00027261,2]
[394302591,1763434243989,-500.0,0.00027397,2]
[394302592,1763434243998,-159.75595681,0.00027397,2]
[394302593,1763434244007,-1092.0,0.00027398,2]
[394302594,1763434244016,-259.05191902,0.00027463,2]
[394302595,1763434244025,-205.46,0.000275,7]
[394302596,1763434244033,-1092.0,0.00027535,2]
[394302597,1763434244042,-1092.0,0.00027672,2]
[394302598,1763434244051,-1092.0,0.00027809,2]
[394302599,1763434244061,-609.73831264,0.00027813,2]
[394302600,1763434244069,-1106.3903002,0.00027946,2]
[394302601,1763434244078,-18453.9512902,0.0002824,3]
[394302602,1763434244087,-1268.16341957,0.0002825,2]
[394302603,1763434244096,-255.72928133,0.0002825,2]
[394302604,1763434244105,-153.0,0.00028253,2]
[394302605,1763434244114,-153.0,0.00028253,2]
[394302606,1763434244123,-153.0,0.00028253,2]
[394302607,1763434244131,-153.0,0.00028253,2]
[394302608,1763434244141,-153.0,0.00028253,2]
[394302609,1763434244149,-153.0,0.00028253,2]
[394302610,1763434244158,-153.0,0.00028253,2]
[394302611,1763434244168,-153.0,0.00028253,2]
[394302612,1763434244177,-153.0,0.00028253,2]
[394302613,1763434244186,-153.0,0.00028253,2]
[394302614,1763434244195,-153.0,0.00028253,2]
[394302615,1763434244204,-153.0,0.00028253,2]
[394302616,1763434244213,-179.0,0.00028262,2]
[394302617,1763434244222,-179.0,0.00028262,2]
[394302618,1763434244232,-179.0,0.00028262,2]
[394302619,1763434244241,-179.0,0.00028262,2]
[394302620,1763434244250,-179.0,0.00028262,2]
[394302621,1763434244258,-179.0,0.00028262,2]
[394302622,1763434244269,-179.0,0.00028262,2]
[394302623,1763434244278,-179.0,0.00028262,2]
[394302624,1763434244287,-179.0,0.00028262,2]
[394302625,1763434244297,-179.0,0.00028262,2]
[394302626,1763434244306,-179.0,0.00028262,2]
[394302627,1763434244315,-179.0,0.00028262,2]
[394302628,1763434244324,-179.0,0.00028262,2]
[394302629,1763434244334,-179.0,0.00028262,2]
[394302630,1763434244343,-179.0,0.00028262,2]
[394302631,1763434244353,-179.0,0.00028262,2]
[394302632,1763434244364,-179.0,0.00028262,2]
[394302633,1763434244373,-179.0,0.00028262,2]
[394302634,1763434244382,-179.0,0.00028262,2]
[394302635,1763434244391,-179.0,0.00028262,2]
[394302636,1763434244401,-179.0,0.00028262,2]
[394302637,1763434244411,-179.0,0.00028262,2]
[394302638,1763434244419,-179.0,0.00028262,2]
[394302639,1763434244428,-179.0,0.00028262,2]
[394302640,1763434244437,-179.0,0.00028262,2]
[394302641,1763434244447,-153.0,0.00028306,2]
[394302642,1763434244456,-153.0,0.00028306,2]
[394302643,1763434244465,-153.0,0.00028306,2]
[394302644,1763434244475,-153.0,0.00028306,2]
[394302645,1763434244485,-153.0,0.00028306,2]
[394302646,1763434244493,-153.0,0.00028306,2]
[394302647,1763434244503,-153.0,0.00028306,2]
[394302648,1763434244512,-153.0,0.00028306,2]
[394302649,1763434244521,-18453.9512902,0.0002877,3]
[394302650,1763434244530,-800.0,0.000289,10]
[394302651,1763434244538,-288.44,0.00029073,2]
[394302652,1763434244547,-150.0,0.00029082,7]
[394302653,1763434244556,-150.0,0.00029082,7]
[394302654,1763434244565,-742.99,0.00029272,30]
[394302655,1763434244574,-501.44829962,0.000298,5]
[394302656,1763434244583,-500.0,0.000298,5]
[394302657,1763434244592,-567.21962,0.000298,5]
[394302658,1763434244600,-1000.0,0.00030136,10]
[394302659,1763434244610,-235.04301105,0.00030731,2]
[394302660,1763434244619,-18453.9512902,0.00030888,3]
[394302661,1763434244628,-1268.16341957,0.00030913,2]
[394302662,1763434244637,-255.72928133,0.00030913,15]
[394302663,1763434244646,-609.73831264,0.0003125,2]
[394302664,1763434244655,-275.77487302,0.00031481,2]
[394302665,1763434244665,-157.28592997,0.00031481,2]
[394302666,1763434244674,-1664.59372393,0.000315,2]
[394302667,1763434244683,-205.46,0.000324,7]
[394302668,1763434244692,-288.44,0.00032666,2]
[394302669,1763434244701,-500.0,0.00032877,2]
[394302670,1763434244710,-500.0,0.00033014,2]
[394302671,1763434244719,-500.0,0.00033151,2]
[394302672,1763434244730,-168.0,0.00033161,2]
[394302673,1763434244740,-171.61829592,0.000332,2]
[394302674,1763434244749,-275.46369886,0.00033288,2]
[394302675,1763434244758,-500.0,0.00033432,2]
[394302676,1763434244768,-1268.16341957,0.00033576,2]
[394302677,1763434244778,-255.72928133,0.00033576,15]
[394302678,1763434244787,-18453.9512902,0.00033598,3]
[394302679,1763434244796,-437.0,0.00033657,2]
[394302680,1763434244806,-437.0,0.00033686,2]
[394302681,1763434244814,-437.0,0.00033779,2]
[394302682,1763434244824,-437.0,0.00033992,7]
[394302683,1763434244833,-301.50177407,0.00034039,3]
[394302684,1763434244842,-742.99,0.00034319,30]
[394302685,1763434244852,-162.0,0.0003432,2]
[394302686,1763434244861,-1318.0,0.00034326,2]
[394302687,1763434244870,-577.869,0.00034326,2]
[394302688,1763434244880,-609.0,0.00034326,2]
[394302689,1763434244889,-821.0,0.00034326,2]
[394302690,1763434244898,-1599.0,0.00034326,2]
[394302691,1763434244907,-1280.539,0.00034326,2]
[394302692,1763434244916,-797.018,0.00034326,2]
[394302693,1763434244925,-707.616,0.00034326,2]
[394302694,1763434244934,-561.0,0.00034326,2]
[394302695,1763434244943,-975.456,0.00034326,2]
[394302696,1763434244952,-1604.0,0.00034326,2]
[394302697,1763434244961,-437.0,0.00034436,2]
[394302698,1763434244970,-168.0,0.00034529,2]
[394302699,1763434244980,-437.0,0.00034622,2]
[394302700,1763434244988,-439.0,0.00034648,2]
[394302701,1763434244997,-439.0,0.00034678,2]
[394302702,1763434245006,-609.73831264,0.00034688,2]
[394302703,1763434245014,-437.0,0.00034696,2]
[394302704,1763434245023,-439.0,0.00034752,2]
[394302705,1763434245032,-225.0,0.00034804,2]
[394302706,1763434245042,-437.0,0.00034942,7]
[394302707,1763434245052,-168.0,0.00034955,2]
[394302708,1763434245062,-92269.756451,0.0003499,3]
[394302709,1763434245070,-200000.0,0.00035,2]
[394302710,1763434245081,-18453.9512902,0.00035078,3]
[394302711,1763434245090,-150.0,0.00035088,4]
[394302712,1763434245099,-150.0,0.00035088,4]
[394302713,1763434245109,-150.0,0.00035088,4]
[394302714,1763434245117,-150.0,0.00035088,4]
[394302715,1763434245126,-150.0,0.00035088,4]
[394302716,1763434245135,-150.0,0.00035088,4]
[394302717,1763434245144,-150.0,0.00035088,4]
[394302718,1763434245154,-150.0,0.00035088,4]
[394302719,1763434245162,-150.00000001,0.00035088,4]
[394302720,1763434245172,-150.25498633,0.00035088,4]
[394302721,1763434245181,-150.0,0.00035088,4]
[394302722,1763434245190,-150.0,0.00035088,4]
[394302723,1763434245199,-150.0,0.00035088,4]
[394302724,1763434245209,-162.76973838,0.00035088,4]
[394302725,1763434245218,-150.0,0.00035088,4]
[394302726,1763434245227,-2922.57,0.00035094,2]
[394302727,1763434245238,-205.46,0.000352,14]
[394302728,1763434245247,-168.0,0.00035248,2]
[394302729,1763434245256,-150.0,0.00035366,7]
[394302730,1763434245265,-181.0,0.00035425,2]
[394302731,1763434245274,-1024.0,0.00035425,2]
[394302732,1763434245283,-73815.8051608,0.0003549,3]
[394302733,1763434245292,-151.0,0.0003549,31]
[394302734,1763434245301,-151.0,0.0003549,31]
[394302735,1763434245309,-151.0,0.0003549,31]
[394302736,1763434245318,-152.795866,0.0003549,31]
[394302737,1763434245327,-153.815231,0.0003549,31]
[394302738,1763434245337,-151.0,0.0003549,31]
[394302739,1763434245346,-151.0,0.0003549,31]
[394302740,1763434245355,-151.0,0.0003549,31]
[394302741,1763434245364,-153.679892,0.0003549,31]
[394302742,1763434245374,-239.106541,0.0003549,31]
[394302743,1763434245383,-25550.9292513,0.000355,2]
[394302744,1763434245500,-527.17789698,0.000355,2]
[394302745,1763434245551,-4576.9,0.000355,2]
[394302746,1763434245624,-169344.99285172,0.000355,2]
[394302747,1763434245634,-151.0,0.000355,31]
[394302748,1763434245643,-151.0,0.000355,31]
[394302749,1763434245652,-151.0,0.000355,31]
[394302750,1763434245663,-151.0,0.000355,31]
[394302751,1763434245673,-151.0,0.000355,31]
[394302752,1763434245682,-151.0,0.000355,31]
[394302753,1763434245692,-151.0,0.000355,31]
[394302754,1763434245701,-151.0,0.000355,31]
[394302755,1763434245711,-151.0,0.000355,31]
[394302756,1763434245720,-151.0,0.000355,31]
[394302757,1763434245732,-151.0,0.000355,31]
[394302758,1763434245741,-151.0,0.000355,31]
[394302759,1763434245751,-151.0,0.000355,31]
[394302760,1763434245761,-151.0,0.000355,31]
[394302761,1763434245770,-151.0,0.000355,31]
[394302762,1763434245779,-151.0,0.000355,31]
[394302763,1763434245793,-151.0,0.000355,31]
[394302764,1763434245802,-272.862244,0.000355,28]
[394302765,1763434245813,-272.862244,0.000355,28]
[394302766,1763434245822,-272.862244,0.000355,28]
[394302767,1763434245831,-272.862244,0.000355,28]
[394302768,1763434245841,-151.0,0.000355,31]
[394302769,1763434245850,-151.0,0.000355,31]
[394302770,1763434245860,-151.0,0.000355,31]
[394302771,1763434245869,-730.397166,0.000355,30]
[394302772,1763434245879,-730.397166,0.000355,30]
[394302773,1763434245888,-730.397166,0.000355,30]
[394302774,1763434245897,-730.397166,0.000355,30]
[394302775,1763434245906,-150.0,0.00035521,7]
[394302776,1763434245916,-150.0,0.00035521,7]
[394302777,1763434245925,-150.0,0.00035645,7]
[394302778,1763434245934,-150.0,0.00035737,7]
[394302779,1763434245943,-150.0,0.00035737,7]
[394302780,1763434245952,-437.0,0.00035775,2]
[394302781,1763434245961,-168.0,0.00035812,2]
[394302782,1763434245972,-168.0,0.00035821,2]
[394302783,1763434245983,-437.0,0.00035856,2]
[394302784,1763434245996,-150.0,0.00035923,7]
[394302785,1763434246006,-150.0,0.00035954,7]
[394302786,1763434246015,-150.0,0.00035954,7]
[394302787,1763434246024,-180884.699604,0.00036,2]
[394302788,1763434246325,-384.42911935,0.00036,2]
[394302790,1763434246759,-255.22751997,0.00024932,2]
[394302791,1763434246769,-2728.21083523,0.00036,2]
[394302792,1763434246781,-1767.395,0.00036,2]
[394302798,1763434266413,302.93030867,0.00027279,120]
[394302799,1763434270714,2115.9899517,0.00027279,120]
[394302800,1763434271290,302.49450911,0.00027279,120]
[394302806,1763434325965,309.07878211,0.00041664,30]
[394302807,1763434330815,500.0,0.00041664,30]
[394302808,1763434331585,500.0,0.00041664,30]
[394302809,1763434332249,500.0,0.00041664,30]
[394302810,1763434332712,200.0,0.00041664,30]
[394302811,1763434333398,500.0,0.00041664,30]
[394302812,1763434333441,207.4,0.00041664,30]
[394302813,1763434334035,500.0,0.00041664,30]
[394302814,1763434334065,215.0738,0.00041664,30]
[394302815,1763434334379,205.70624743,0.00041664,30]
[394302816,1763434334704,500.0,0.00041664,30]
[394302817,1763434334738,223.0315306,0.00041664,30]
[394302818,1763434335347,500.0,0.00041664,30]
[394302819,1763434335399,231.28369723,0.00041664,30]
[394302820,1763434336033,500.0,0.00041664,30]
[394302821,1763434336080,239.84119403,0.00041664,30]
[394302822,1763434336668,500.0,0.00041664,30]
[394302823,1763434336712,248.71531821,0.00041664,30]
[394302824,1763434337315,500.0,0.00041664,30]
[394302825,1763434337351,257.91778498,0.00041664,30]
[394302826,1763434337929,500.0,0.00041664,30]
[394302827,1763434337995,6888.0,0.00041664,30]
[394302828,1763434338064,267.46074303,0.00041664,30]
[394302829,1763434338553,500.0,0.00041664,30]
[394302830,1763434338680,7142.856,0.00041664,30]
[394302831,1763434339015,277.35679052,0.00041664,30]
[394302832,1763434339213,500.0,0.00041664,30]
[394302833,1763434339328,7407.141672,0.00041664,30]
[394302834,1763434339358,287.61899177,0.00041664,30]
[394302835,1763434339904,500.0,0.00041664,30]
[394302836,1763434339953,7681.20591386,0.00041664,30]
[394302837,1763434339981,298.26089446,0.00041664,30]
[394302838,1763434340578,500.0,0.00041664,30]
[394302839,1763434340617,7965.41053268,0.00041664,30]
[394302840,1763434340645,309.29654756,0.00041664,30]
[394302841,1763434341199,500.0,0.00041664,30]
[394302842,1763434341268,309.29654756,0.00041664,30]
[394302843,1763434341297,8260.13072239,0.00041664,30]
[394302844,1763434341860,500.0,0.00041664,30]
[394302845,1763434341895,8565.75555911,0.00041664,30]
[394302846,1763434342537,500.0,0.00041664,30]
[394302847,1763434342567,8882.6885148,0.00041664,30]
[394302848,1763434343224,500.0,0.00041664,30]
[394302849,1763434343266,9211.34798985,0.00041664,30]
[394302850,1763434343870,500.0,0.00041664,30]
[394302851,1763434343916,9211.34798985,0.00041664,30]
[394302852,1763434347703,200.0,0.00041664,30]
[394302853,1763434349671,600.0,0.00041664,30]
[394302854,1763434350329,600.0,0.00041664,30]
[394302855,1763434350752,191.17484599,0.00041664,30]
[394302856,1763434350969,600.0,0.00041664,30]
[394302857,1763434351733,600.0,0.00041664,30]
[394302858,1763434352181,600.0,0.00041664,30]
[394302860,1763434390248,500.0,0.00041664,30]
[394302861,1763434390875,500.0,0.00041664,30]
[394302862,1763434391508,500.0,0.00041664,30]
[394302863,1763434392121,500.0,0.00041664,30]
[394302864,1763434393202,1500.0,0.00024784,120]
[394302865,1763434393378,500.0,0.00041664,30]
[394302866,1763434394078,500.0,0.00041664,30]
[394302867,1763434394759,500.0,0.00041664,30]
[394302868,1763434395417,500.0,0.00041664,30]
[394302869,1763434396029,500.0,0.00041664,30]
[394302870,1763434396661,500.0,0.00041664,30]
[394302871,1763434399629,500.0,0.00041664,30]
[394302872,1763434400156,258.169424,0.00041664,40]
[394302873,1763434400439,500.0,0.00041664,30]
[394302874,1763434401094,500.0,0.00041664,30]
[394302875,1763434401928,500.0,0.00041664,30]
[394302876,1763434402493,500.0,0.00041664,30]
[394302877,1763434403460,500.0,0.00041664,30]
[394302878,1763434404128,500.0,0.00041664,30]
[394302879,1763434404764,500.0,0.00041664,30]
[394302880,1763434405410,500.0,0.00041664,30]
[394302881,1763434408047,4510.86315491,0.00041664,39]
[394302882,1763434454277,500.0,0.00041665,40]
[394302883,1763434454876,500.0,0.00041665,40]
[394302884,1763434455478,500.0,0.00041665,40]
[394302885,1763434456107,500.0,0.00041665,40]
[394302886,1763434456727,500.0,0.00041665,40]
[394302887,1763434457383,500.0,0.00041665,40]
[394302888,1763434457986,500.0,0.00041665,40]
[394302889,1763434458594,500.0,0.00041665,40]
[394302890,1763434459238,500.0,0.00041665,40]
[394302891,1763434459886,500.0,0.00041665,40]
[394302892,1763434460534,500.0,0.00041665,40]
[394302893,1763434461254,500.0,0.00041665,40]
[394302894,1763434461886,500.0,0.00041665,40]
[394302895,1763434462512,500.0,0.00041665,40]
[394302896,1763434463176,500.0,0.00041665,40]
[394302897,1763434464068,500.0,0.00041665,40]
[394302898,1763434464461,500.0,0.00041665,40]
[394302899,1763434465123,500.0,0.00041665,40]
[394302900,1763434465750,500.0,0.00041665,40]
[394302901,1763434466386,500.0,0.00041665,40]
[394302902,1763434477180,584.317733,0.00041665,30]
[394302903,1763434477502,584.317733,0.00041665,30]
[394302904,1763434477818,584.317733,0.00041665,30]
[394302905,1763434478143,584.317733,0.00041665,30]
[394302906,1763434478492,584.317733,0.00041665,30]
[394302907,1763434478861,584.317733,0.00041665,30]
[394302908,1763434479169,584.317733,0.00041665,30]
[394302909,1763434479499,584.317733,0.00041665,30]
[394302910,1763434479840,584.317733,0.00041665,30]
[394302911,1763434480158,584.317733,0.00041665,30]
[394302912,1763434480641,584.317733,0.00041665,30]
[394302913,1763434480784,584.317733,0.00041665,30]
[394302914,1763434481087,584.317733,0.00041665,30]
[394302915,1763434481422,584.317733,0.00041665,30]
[394302916,1763434481715,584.317733,0.00041665,30]
[394302917,1763434482029,584.317733,0.00041665,30]
[394302918,1763434482329,584.317733,0.00041665,30]
[394302919,1763434482644,584.317733,0.00041665,30]
[394302920,1763434482945,584.317733,0.00041665,30]
[394302921,1763434483245,584.317739,0.00041665,30]
[394302922,1763434517440,500.0,0.00041665,40]
[394302923,1763434518069,500.0,0.00041665,40]
[394302924,1763434518687,500.0,0.00041665,40]
[394302925,1763434519290,500.0,0.00041665,40]
[394302926,1763434519441,151.0,0.00041665,31]
[394302927,1763434519752,296.46879,0.00041665,40]
[394302928,1763434519929,500.0,0.00041665,40]
[394302929,1763434520540,500.0,0.00041665,40]
[394302930,1763434521147,500.0,0.00041665,40]
[394302931,1763434521774,500.0,0.00041665,40]
[394302932,1763434522404,500.0,0.00041665,40]
[394302933,1763434523239,500.0,0.00041665,40]
[394302934,1763434523622,500.0,0.00041665,40]
[394302935,1763434524231,500.0,0.00041665,40]
[394302936,1763434524921,500.0,0.00041665,40]
[394302937,1763434528756,151.0,0.00041665,31]
[394302938,1763434529075,151.0,0.00041665,40]
[394302939,1763434529386,151.0,0.00041665,40]
[394302940,1763434529709,151.0,0.00041665,40]
[394302941,1763434530055,151.0,0.00041665,40]
[394302942,1763434530348,151.0,0.00041665,31]
[394302943,1763434530642,151.0,0.00041665,40]
[394302944,1763434530947,151.0,0.00041665,40]
[394302945,1763434531247,151.0,0.00041665,40]
[394302946,1763434531556,151.0,0.00041665,40]
[394302947,1763434531891,151.0,0.00041665,31]
[394302948,1763434532210,151.0,0.00041665,40]
[394302949,1763434532527,151.0,0.00041665,40]
[394302950,1763434532836,151.0,0.00041665,40]
[394302951,1763434533135,151.0,0.00041665,40]
[394302952,1763434533443,239.106541,0.00041665,31]
[394302953,1763434624866,485.68555989,0.00041665,40]
[394302954,1763434627148,151.0,0.00041665,31]
[394302955,1763434627452,151.0,0.00041665,40]
[394302956,1763434627754,276.386593,0.00041665,40]
[394302957,1763434686138,151.0,0.00041665,31]
[394302958,1763434686812,151.0,0.00041665,40]